bitfinex/quotes_ETHUSD_20250430
["timestamp","ask_amount","ask_price","bid_price","bid_amount"]
[1745979019684,4.85163164,1799.3,1799.2,5.55800519]
[1745979019885,4.9478215,1799.3,1799.2,5.55800519]
[1745979020087,5.16045314,1799.3,1799.2,5.55800519]
[1745979022912,0.52145314,1799.3,1799.2,6.33000519]
[1745979023112,0.52145314,1799.3,1799.2,7.49718729]
[1745979023313,0.52145314,1799.3,1799.2,7.44161297]
[1745979023514,0.52145314,1799.3,1799.2,7.49718566]
[1745979024012,0.51787232,1799.3,1799.2,7.49718566]
[1745979024203,0.20905082,1799.3,1799.2,7.49718566]
[1745979024399,10.789,1799.5,1799.4,5.55740802]
[1745979024618,10.99805082,1799.5,1799.4,5.55740802]
[1745979024987,11.30800581,1799.5,1799.4,5.55740802]
[1745979028221,5.15800581,1799.5,1799.4,5.55740802]
[1745979028381,0.51900581,1799.5,1799.4,5.55740802]
[1745979028585,0.51900581,1799.5,1799.4,7.47530664]
[1745979028831,0.20905082,1799.5,1799.4,7.47530664]
[1745979028994,10.789,1799.7,1799.6,5.55679039]
[1745979029323,10.99879692,1799.7,1799.6,5.55679039]
[1745979029721,11.30885235,1799.7,1799.6,5.55679039]
[1745979031933,11.59309179,1799.7,1799.6,5.55679039]
[1745979034028,5.44309179,1799.7,1799.6,5.55679039]
[1745979034831,0.80409179,1799.7,1799.6,6.31819039]
[1745979035328,0.80409179,1799.7,1799.6,5.55679039]
[1745979037239,1.58569179,1799.7,1799.6,5.55679039]
[1745979038354,0.80409179,1799.7,1799.6,5.55679039]
[1745979041166,1.56149179,1799.7,1799.6,5.55679039]
[1745979043228,6.20049179,1799.7,1799.6,5.55679039]
[1745979044454,6.20049179,1799.7,1799.5,5.55690474]
[1745979044867,5.89043636,1799.7,1799.6,5.55679039]
[1745979045369,5.13303636,1799.7,1799.6,6.37889039]
[1745979046249,5.44316601,1799.7,1799.6,6.37889039]
[1745979053868,5.44316601,1799.7,1799.6,5.55679039]
[1745979057788,0.80416601,1799.7,1799.6,5.55679039]
[1745979060413,1.55946601,1799.7,1799.6,5.55679039]
[1745979060611,0.80416601,1799.7,1799.6,5.55679039]
[1745979072361,0.80416601,1799.7,1799.6,7.4582599]
[1745979072526,0.80416601,1799.7,1799.6,6.34689039]
[1745979088579,0.80416601,1799.7,1799.6,5.55679039]
[1745979088794,0.7965,1799.6,1799.1,3.74365619]
[1745979089083,1.29391794,1799.5,1799.2,5.55801882]
[1745979089290,4.635,1799.4,1799.2,5.55801882]
[1745979089451,4.94512965,1799.4,1799.2,5.55783526]
[1745979089650,0.49741794,1799.3,1799.2,5.55783526]
[1745979089863,0.31012965,1799.3,1799.2,5.55783526]
[1745979090098,0.80754759,1799.3,1799.2,5.55783526]
[1745979090296,0.80754759,1799.3,1799.2,9.30149145]
[1745979093928,0.80754759,1799.3,1799.2,5.55783526]
[1745979100297,1.57164759,1799.3,1799.1,5.55817957]
[1745979100506,4.57164759,1799.3,1799.2,5.55802578]
[1745979100810,8.89751794,1799.3,1799.2,5.55802578]
[1745979100993,8.89751794,1799.3,1799.1,5.55812528]
[1745979102432,0.30950563,1799.2,1799.1,5.55812528]
[1745979102739,0.80448674,1799.2,1799.1,5.55812528]
[1745979105790,0.49498111,1799.2,1799.1,5.55812528]
[1745979108139,3.0,1799.4,1799.2,5.55794928]
[1745979108292,0.80429791,1799.3,1799.2,5.55794928]
[1745979117531,0.80429791,1799.3,1799.2,6.66955674]
[1745979117754,0.80429791,1799.3,1799.2,9.11899597]
[1745979117955,0.80429791,1799.3,1799.2,9.0634207]
[1745979118159,0.3093168,1799.3,1799.2,9.0634207]
[1745979118366,0.46476205,1799.3,1799.2,9.0477207]
[1745979118677,6.15,1799.8,1799.7,5.55648163]
[1745979118864,3.7258472,1800.0,1799.9,5.55586421]
[1745979119366,4.0364093,1800.0,1799.9,6.35226421]
[1745979119957,3.7258472,1800.0,1799.9,6.35226421]
[1745979122068,6.15,1800.3,1800.2,5.55493834]
[1745979122364,3.0,1800.4,1800.3,5.55442942]
[1745979123148,3.30944545,1800.4,1800.3,5.55442942]
[1745979124976,3.30944545,1800.4,1800.1,5.55514751]
[1745979125266,0.8018,1800.3,1800.1,5.55514751]
[1745979125867,0.8018,1800.3,1800.1,5.55505344]
[1745979126070,0.30944545,1800.2,1800.1,5.55504857]
[1745979126269,0.7400159,1800.2,1800.1,5.55504857]
[1745979126767,0.43057045,1800.2,1800.1,5.55504857]
[1745979131897,0.43057045,1800.2,1800.0,5.55542382]
[1745979132073,0.7594,1800.1,1799.9,5.55566497]
[1745979132272,0.43416181,1800.0,1799.9,5.55563705]
[1745979138085,0.43416181,1800.0,1799.9,6.30923705]
[1745979143000,0.43416181,1800.0,1799.9,5.55563705]
[1745979144305,0.74384763,1800.0,1799.9,5.55563705]
[1745979146202,0.74384763,1800.0,1799.9,6.28706374]
[1745979151929,0.74384763,1800.0,1799.9,7.1111157]
[1745979152422,0.74384763,1800.0,1799.9,7.05556374]
[1745979152630,0.43416181,1800.0,1799.9,7.11111208]
[1745979153090,7.63,1800.4,1800.3,5.55462978]
[1745979153713,7.94077693,1800.4,1800.3,5.55462978]
[1745979155499,0.8129,1800.3,1800.2,5.55479795]
[1745979155886,1.12367693,1800.3,1800.2,5.55479795]
[1745979157714,0.31077693,1800.3,1800.2,5.55479795]
[1745979162144,0.31077693,1800.3,1800.2,7.43398844]
[1745979162281,0.31077693,1800.3,1800.2,7.48953356]
[1745979162487,5.4582,1800.9,1800.8,5.55289283]
[1745979162793,8.4582,1800.9,1800.8,5.55289283]
[1745979163337,8.4582,1800.9,1800.7,5.55318579]
[1745979163789,8.4582,1800.9,1800.7,11.10637781]
[1745979164205,8.4582,1800.9,1800.7,11.10638958]
[1745979164428,8.4582,1800.9,1800.7,5.55318579]
[1745979166224,8.4582,1800.9,1800.7,11.1063603]
[1745979167359,0.39978057,1800.8,1800.7,5.55317451]
[1745979167524,8.4582,1800.9,1800.8,5.55308751]
[1745979167723,8.85798057,1800.9,1800.8,5.55308751]
[1745979168881,8.02878057,1800.9,1800.8,5.55308751]
[1745979169723,5.02878057,1800.9,1800.8,5.55308751]
[1745979169925,0.39978057,1800.9,1800.8,6.66371371]
[1745979171341,0.39978057,1800.9,1800.8,5.55308751]
[1745979180003,0.39978057,1800.9,1800.8,5.60861233]
[1745979180349,0.39978057,1800.9,1800.8,5.55308751]
[1745979181794,0.39978057,1800.9,1800.8,6.32308751]
[1745979183959,0.5,1801.2,1801.1,5.55216256]
[1745979184301,0.90693424,1801.2,1801.1,5.55216256]
[1745979186143,0.90693424,1801.2,1801.1,6.66261199]
[1745979186481,0.90693424,1801.2,1801.1,7.41811199]
[1745979189146,0.90693424,1801.2,1801.1,6.66261199]
[1745979189783,0.90693424,1801.2,1801.1,7.42961199]
[1745979191161,0.90693424,1801.2,1801.1,1.11044943]
[1745979191354,0.90693424,1801.2,1801.1,6.66261199]
[1745979196892,4.69683424,1801.2,1800.9,5.55252623]
[1745979197061,4.69683424,1801.2,1801.0,5.55227932]
[1745979197260,4.69683424,1801.2,1801.0,5.55227359]
[1745979197861,4.69683424,1801.2,1801.0,11.10454434]
[1745979198284,4.69683424,1801.2,1801.0,5.55227075]
[1745979198488,4.69683424,1801.2,1801.0,5.55225372]
[1745979198814,5.19683424,1801.2,1801.0,11.10450875]
[1745979200185,5.19683424,1801.2,1801.0,5.55225372]
[1745979200390,5.19683424,1801.2,1801.0,11.1045221]
[1745979201587,5.19683424,1801.2,1801.0,5.55225372]
[1745979201795,5.19683424,1801.2,1801.0,11.1045148]
[1745979201991,4.40693424,1801.2,1801.0,5.55225372]
[1745979202291,0.75,1801.1,1800.9,5.55257772]
[1745979202464,0.75,1801.1,1801.0,5.55247084]
[1745979202665,1.12544132,1801.1,1801.0,5.55247084]
[1745979205262,0.37544132,1801.1,1801.0,5.55247084]
[1745979205485,4.8116,1801.2,1801.0,11.10494168]
[1745979205766,0.37544132,1801.1,1801.0,5.55247084]
[1745979205969,4.8116,1801.2,1801.0,11.10494168]
[1745979206168,0.37544132,1801.1,1801.0,5.55247084]
[1745979206402,4.8116,1801.2,1801.0,11.10494168]
[1745979206604,0.37544132,1801.1,1801.0,5.55247084]
[1745979206805,4.8116,1801.2,1801.0,11.10494168]
[1745979207009,0.37544132,1801.1,1801.0,5.55247084]
[1745979207307,10.9616,1801.2,1801.0,11.10494168]
[1745979207509,0.37544132,1801.1,1801.0,5.55247084]
[1745979207806,10.9616,1801.2,1801.0,11.10494168]
[1745979207971,0.37544132,1801.1,1801.0,5.55247084]
[1745979208316,10.4616,1801.2,1801.0,11.10494168]
[1745979208491,0.37544132,1801.1,1801.0,5.55247084]
[1745979208895,10.4616,1801.2,1801.0,11.10494168]
[1745979209089,0.37544132,1801.1,1801.0,5.55247084]
[1745979209467,10.4616,1801.2,1801.1,5.55216256]
[1745979209663,10.83704132,1801.2,1801.1,5.55216256]
[1745979210399,10.83704132,1801.2,1801.0,5.55231545]
[1745979210806,10.83704132,1801.2,1800.6,0.802]
[1745979211018,0.8173,1801.0,1800.6,5.55341946]
[1745979211204,3.8173,1800.8,1800.4,6.37615751]
[1745979211366,9.9673,1800.8,1800.4,5.55409425]
[1745979211570,0.37483916,1800.7,1800.5,5.55398087]
[1745979213107,0.37483916,1800.7,1800.5,5.55385783]
[1745979213407,0.37483916,1800.7,1800.5,11.10767284]
[1745979213595,0.37483916,1800.7,1800.5,5.55381501]
[1745979214975,0.37483916,1800.7,1800.6,5.55370432]
[1745979215180,0.37483916,1800.7,1800.5,5.55381501]
[1745979216608,0.37483916,1800.7,1800.4,5.55416081]
[1745979216807,0.37483916,1800.7,1800.4,11.10827284]
[1745979217010,3.7623,1800.6,1800.3,11.10900278]
[1745979217175,4.623,1800.5,1800.3,5.55447658]
[1745979217505,0.37212838,1800.4,1800.3,5.55447658]
[1745979218080,0.37212838,1800.4,1800.3,6.85870023]
[1745979225414,0.37212838,1800.4,1800.3,6.91424074]
[1745979225720,0.37212838,1800.4,1800.3,6.85870023]
[1745979226015,0.37212838,1800.4,1800.3,7.61760023]
[1745979226323,6.15,1800.5,1800.4,7.90718522]
[1745979226502,6.15,1800.5,1800.4,9.38377376]
[1745979227521,0.30724312,1800.5,1800.4,9.38377376]
[1745979227817,4.623,1800.8,1800.7,5.5533959]
[1745979229517,3.8114,1801.0,1800.9,5.55277916]
[1745979229721,1.3303,1801.2,1801.1,5.55216256]
[1745979229919,0.5,1801.2,1801.1,5.55216256]
[1745979230912,0.8303,1801.1,1800.4,1.47658854]
[1745979231226,3.0,1801.0,1800.9,5.55277916]
[1745979236123,3.0,1801.0,1800.8,5.55290576]
[1745979236300,3.0,1801.0,1800.9,5.55277916]
[1745979236499,3.0,1801.0,1800.8,5.55290576]
[1745979236721,0.7624,1800.9,1800.8,5.55290576]
[1745979239001,4.621,1801.1,1800.9,5.55277916]
[1745979239208,7.621,1801.1,1801.0,5.55247084]
[1745979242134,7.621,1801.1,1800.9,5.55277916]
[1745979242338,7.91948019,1801.1,1800.9,5.55277916]
[1745979242652,7.91948019,1801.1,1801.0,5.55247084]
[1745979246455,7.91948019,1801.1,1800.9,5.55255728]
[1745979246674,7.91948019,1801.1,1800.9,11.1051636]
[1745979246951,7.91948019,1801.1,1801.0,5.55247084]
[1745979248123,7.91948019,1801.1,1800.9,5.55255728]
[1745979248323,7.91948019,1801.1,1800.9,11.10511835]
[1745979248547,7.91948019,1801.1,1800.9,5.55255728]
[1745979248856,7.91948019,1801.1,1801.0,5.55247084]
[1745979250551,7.91948019,1801.1,1800.9,5.55255728]
[1745979250755,7.91948019,1801.1,1800.9,11.10515183]
[1745979252248,7.91948019,1801.1,1800.9,5.55255728]
[1745979252456,7.91948019,1801.1,1800.9,11.10512964]
[1745979252657,7.91948019,1801.1,1801.0,5.55247084]
[1745979255757,7.91948019,1801.1,1800.9,11.10511532]
[1745979255958,7.91948019,1801.1,1800.9,5.55255728]
[1745979257055,7.91948019,1801.1,1800.9,11.10517764]
[1745979257237,7.91948019,1801.1,1800.9,5.55255728]
[1745979257440,7.91948019,1801.1,1800.9,11.10516446]
[1745979257736,7.91948019,1801.1,1800.8,5.55288932]
[1745979257737,3.0,1801.0,1800.8,5.55288932]
[1745979257933,0.29802619,1800.9,1800.7,5.5532783]
[1745979258139,0.29802619,1800.9,1800.8,5.55308751]
[1745979259564,0.60888956,1800.9,1800.8,5.55308751]
[1745979262757,0.60888956,1800.9,1800.8,6.35108751]
[1745979262957,0.60888956,1800.9,1800.8,5.55308751]
[1745979263264,5.22788956,1800.9,1800.8,5.55308751]
[1745979266066,5.22788956,1800.9,1800.8,6.78285008]
[1745979266564,5.22788956,1800.9,1800.8,7.58085008]
[1745979267234,5.22788956,1800.9,1800.8,6.35108751]
[1745979267436,5.22788956,1800.9,1800.8,5.55308751]
[1745979267662,6.03698956,1800.9,1800.7,5.55318882]
[1745979267856,0.31086337,1800.8,1800.6,5.5534908]
[1745979268063,0.31086337,1800.8,1800.7,5.5533959]
[1745979272371,0.60878873,1800.8,1800.7,5.5533959]
[1745979273366,5.22778873,1800.8,1800.7,6.74377457]
[1745979273784,0.60878873,1800.8,1800.7,6.74377457]
[1745979274279,5.22778873,1800.8,1800.7,6.74377457]
[1745979276254,5.22778873,1800.8,1800.7,5.5533959]
[1745979278481,5.99028873,1800.8,1800.7,5.5533959]
[1745979279547,5.22778873,1800.8,1800.7,5.5533959]
[1745979279744,3.7625,1800.7,1800.2,9.29849114]
[1745979279950,3.7625,1800.5,1800.2,3.74365619]
[1745979280196,3.7625,1800.3,1800.2,3.74365619]
[1745979280378,9.9125,1800.3,1800.2,3.74365619]
[1745979280550,10.32396913,1800.3,1800.2,3.74365619]
[1745979280750,10.61780792,1800.3,1800.2,3.74365619]
[1745979281058,10.92867129,1800.3,1800.2,3.74365619]
[1745979282449,10.51720216,1800.3,1800.2,3.74365619]
[1745979282785,10.51720216,1800.3,1800.0,5.55537517]
[1745979282786,10.51720216,1800.3,1800.0,5.55542098]
[1745979283265,0.31086337,1800.2,1800.0,5.55542098]
[1745979283695,0.29222368,1800.1,1800.0,5.55542098]
[1745979284053,0.31086337,1800.2,1800.0,5.55542098]
[1745979284295,0.29176933,1800.1,1800.0,5.55542098]
[1745979284592,0.31086337,1800.2,1800.0,5.55542098]
[1745979284791,0.29171884,1800.1,1800.0,5.55542098]
[1745979285090,0.31086337,1800.2,1800.0,5.55542098]
[1745979285389,0.29171884,1800.1,1800.0,5.55542098]
[1745979285591,0.31086337,1800.1,1800.0,5.55542098]
[1745979285778,0.60258221,1800.1,1800.0,5.55542098]
[1745979292200,0.29171884,1800.1,1800.0,5.55542098]
[1745979292400,10.33955382,1800.3,1800.0,11.1108647]
[1745979292617,0.28919504,1800.2,1800.0,11.1108647]
[1745979292800,0.28919504,1800.2,1800.0,5.55542098]
[1745979294001,0.30874284,1800.1,1800.0,5.55542098]
[1745979294409,0.59793788,1800.1,1800.0,5.55542098]
[1745979295889,0.57902099,1800.1,1800.0,5.55542098]
[1745979300659,8.19802099,1800.1,1800.0,5.55542098]
[1745979304062,8.97582099,1800.1,1799.9,5.55568709]
[1745979304381,0.7778,1799.9,1799.3,0.8254]
[1745979304676,0.7778,1799.6,1799.3,5.55752187]
[1745979304971,4.619,1799.5,1799.3,11.11502744]
[1745979305182,0.28884157,1799.4,1799.3,5.55749955]
[1745979306424,0.28884157,1799.4,1799.3,6.66903859]
[1745979308044,0.59814084,1799.4,1799.3,6.66903859]
[1745979308869,0.59814084,1799.4,1799.3,7.45503859]
[1745979309060,0.28884157,1799.4,1799.3,7.45503859]
[1745979310469,0.28884157,1799.4,1799.3,5.55749955]
[1745979310972,0.5983092,1799.4,1799.3,5.55749955]
[1745979312638,0.28884157,1799.4,1799.3,5.55749955]
[1745979315073,6.15,1799.8,1799.7,5.55648163]
[1745979315287,4.62,1799.9,1799.8,5.5561729]
[1745979316061,13.77,1800.2,1800.1,5.55524693]
[1745979316245,3.0,1800.1,1800.0,5.55541985]
[1745979316987,3.3095769,1800.1,1800.0,5.55541985]
[1745979317346,3.57106548,1800.1,1800.0,5.55541985]
[1745979318478,3.57106548,1800.1,1800.0,6.66653127]
[1745979319168,3.57106548,1800.1,1800.0,7.45913127]
[1745979319360,0.57106548,1800.1,1800.0,7.45913127]
[1745979320077,0.26148858,1800.1,1800.0,7.45913127]
[1745979320583,10.77,1800.2,1800.1,5.55524693]
[1745979321584,4.9294647,1800.2,1800.1,6.85668475]
[1745979321785,0.3094647,1800.2,1800.1,6.85668475]
[1745979322568,0.3094647,1800.3,1800.2,5.55493834]
[1745979323158,0.3094647,1800.3,1800.2,6.41308451]
[1745979323692,4.617,1800.4,1800.3,5.55462978]
[1745979324362,4.617,1800.4,1800.3,6.74584659]
[1745979329366,6.15,1800.6,1800.5,5.55401277]
[1745979329565,29.132,1800.7,1800.6,5.55370432]
[1745979332405,29.60217948,1800.7,1800.6,5.55370432]
[1745979336314,24.98517948,1800.7,1800.6,5.55370432]
[1745979336474,29.60117948,1800.7,1800.6,5.55370432]
[1745979341391,30.42527948,1800.7,1800.6,5.55370432]
[1745979342087,35.3162801,1800.7,1800.6,5.55370432]
[1745979342292,3.0,1800.6,1800.5,5.55386989]
[1745979342810,3.47068423,1800.6,1800.5,5.55386989]
[1745979343012,0.7701,1800.5,1800.3,5.55441805]
[1745979343216,2.35186396,1800.5,1800.3,5.55453028]
[1745979343394,2.35186396,1800.5,1800.3,11.10893907]
[1745979343595,3.46972522,1800.4,1800.3,5.55440879]
[1745979343997,3.77896188,1800.4,1800.3,5.55440879]
[1745979346429,0.77896188,1800.4,1800.3,5.55440879]
[1745979347981,8.39496188,1800.4,1800.3,5.55440879]
[1745979349924,5.39496188,1800.4,1800.3,5.55440879]
[1745979350094,5.39496188,1800.4,1800.3,6.74663956]
[1745979350702,0.77896188,1800.4,1800.3,6.74663956]
[1745979351013,0.77896188,1800.4,1800.3,7.55003956]
[1745979351800,0.46972522,1800.4,1800.3,7.55003956]
[1745979352117,4.616,1800.6,1800.5,5.55401277]
[1745979352519,4.92635724,1800.6,1800.5,5.55401277]
[1745979352725,4.92635724,1800.6,1800.5,6.66483239]
[1745979354533,4.92635724,1800.6,1800.5,7.47233239]
[1745979355531,0.31035724,1800.6,1800.5,7.47233239]
[1745979355931,4.614,1800.9,1800.7,5.5533959]
[1745979355932,0.31035724,1800.8,1800.7,5.5533959]
[1745979356130,0.31035724,1800.8,1800.7,6.66409227]
[1745979362443,0.78270678,1800.8,1800.7,6.66409227]
[1745979366651,0.47234954,1800.8,1800.7,6.66409227]
[1745979366950,4.614,1800.9,1800.8,5.55308751]
[1745979367318,4.92401399,1800.9,1800.8,5.55308751]
[1745979367519,4.92401399,1800.9,1800.8,6.77480549]
[1745979372060,1e-08,1800.9,1800.8,7.57440549]
[1745979372222,1e-08,1800.9,1800.8,7.62992299]
[1745979372420,6.15,1801.3,1801.2,5.55185431]
[1745979372654,14.1765658,1801.5,1801.4,5.55123792]
[1745979372852,0.4135658,1801.5,1801.4,5.55123792]
[1745979373021,0.4135658,1801.5,1801.4,6.30773792]
[1745979375153,0.4135658,1801.5,1801.4,5.55123792]
[1745979377460,0.88939596,1801.5,1801.4,5.55123792]
[1745979377661,0.88939596,1801.5,1801.4,7.48800276]
[1745979380239,6.2,1801.9,1801.8,5.55000555]
[1745979380441,10.812,1801.9,1801.8,5.55000555]
[1745979381163,4.662,1801.9,1801.8,5.55000555]
[1745979382266,0.05,1801.9,1801.8,5.55000555]
[1745979382566,0.05,1801.9,1801.8,6.66002414]
[1745979384960,0.05,1801.9,1801.8,7.47582414]
[1745979385365,0.05,1801.9,1801.8,7.53131801]
[1745979385572,0.05,1801.9,1801.8,7.47582414]
[1745979387063,0.49580693,1801.9,1801.8,7.47582414]
[1745979388031,6.9657,1802.5,1802.3,5.54846584]
[1745979388231,6.15,1802.5,1802.4,5.54815801]
[1745979391770,11.5732,1802.7,1802.5,5.54757619]
[1745979392138,6.9642,1802.7,1802.6,5.54754243]
[1745979393873,22.953,1802.8,1802.7,5.5472347]
[1745979394070,4.609,1802.8,1802.7,6.65671241]
[1745979395760,4.98596752,1802.8,1802.7,6.65671241]
[1745979396374,0.37696752,1802.8,1802.7,6.65671241]
[1745979397180,0.37696752,1802.8,1802.7,6.65671241]
[1745979397674,1.13516752,1802.8,1802.7,5.5472347]
[1745979398277,0.37696752,1802.8,1802.7,5.5472347]
[1745979400178,1.16366752,1802.8,1802.4,5.54794594]
[1745979400383,1.16366752,1802.8,1802.1,10.15799179]
[1745979400384,1.16366752,1802.8,1802.5,5.54769575]
[1745979400976,0.30913698,1802.7,1802.5,5.54768942]
[1745979401182,0.30913698,1802.7,1802.6,5.54754243]
[1745979401545,0.30913698,1802.7,1802.6,6.36274243]
[1745979402254,0.05,1802.9,1802.8,5.546927]
[1745979403600,0.05,1802.9,1802.8,7.48542951]
[1745979404284,0.05,1802.9,1802.8,5.546927]
[1745979406398,1e-08,1802.9,1802.8,7.88799096]
[1745979407103,1e-08,1802.9,1802.8,8.43799096]
[1745979407401,1e-08,1803.3,1803.2,6.37149653]
[1745979407559,1e-08,1803.3,1803.2,7.00864618]
[1745979409292,1e-08,1803.3,1803.2,6.18284618]
[1745979409499,0.32355849,1803.3,1803.2,6.18284618]
[1745979411093,0.32355849,1803.3,1803.2,6.97624618]
[1745979411599,0.32355849,1803.3,1803.2,8.55801014]
[1745979411807,1e-08,1803.3,1803.2,9.163454]
[1745979412172,7.656,1803.9,1803.8,5.54385186]
[1745979412378,4.656,1803.9,1803.8,5.54385186]
[1745979412589,4.92992983,1803.9,1803.8,5.54385186]
[1745979412771,0.32392983,1803.9,1803.8,5.54385186]
[1745979413302,1.10802983,1803.9,1803.7,5.5440282]
[1745979413504,5.74002983,1803.9,1803.6,5.54439106]
[1745979413673,0.8149,1803.7,1803.3,5.54511097]
[1745979413877,0.25315194,1803.6,1803.4,5.54496301]
[1745979414199,0.25315194,1803.6,1803.5,5.54477405]
[1745979414698,0.25315194,1803.6,1803.4,11.08984404]
[1745979414902,0.25315194,1803.6,1803.4,5.54488103]
[1745979415102,0.25315194,1803.6,1803.5,5.54477405]
[1745979416811,0.25315194,1803.6,1803.4,5.54488103]
[1745979417376,0.25315194,1803.6,1803.5,5.54477405]
[1745979423003,0.25315194,1803.6,1803.5,6.73424956]
[1745979423391,4.681,1803.9,1803.8,5.54385186]
[1745979423806,7.681,1803.9,1803.7,5.54402851]
[1745979423991,7.681,1803.9,1803.6,5.54433558]
[1745979423992,3.0,1803.8,1803.6,5.54433558]
[1745979424314,0.7563,1803.7,1803.5,5.54449769]
[1745979424611,0.7563,1803.7,1803.5,11.08907964]
[1745979425029,6.9063,1803.7,1803.4,5.54498083]
[1745979425598,3.30982982,1803.6,1803.4,5.54498083]
[1745979426317,0.30982982,1803.5,1803.4,5.54506733]
[1745979427112,3.0,1803.6,1803.4,5.5448589]
[1745979427298,4.631,1803.5,1803.4,5.5448589]
[1745979428353,4.631,1803.5,1803.3,5.54525492]
[1745979428512,4.631,1803.5,1803.3,5.54522751]
[1745979428706,1.12583908,1803.4,1803.3,5.54522751]
[1745979429449,1.12583908,1803.4,1803.2,5.54569017]
[1745979429625,0.31003908,1803.3,1803.2,5.54569017]
[1745979430051,0.31003908,1803.3,1803.2,7.45784437]
[1745979430361,4.13643908,1803.5,1803.4,5.54508151]
[1745979430672,4.13643908,1803.5,1803.3,5.54528033]
[1745979430807,4.13643908,1803.5,1803.3,5.54533556]
[1745979431229,0.31003908,1803.4,1803.3,5.54533556]
[1745979432446,0.31003908,1803.4,1803.2,5.54547572]
[1745979432779,0.8183,1803.3,1803.2,5.54547572]
[1745979432919,0.8183,1803.3,1803.2,5.54569653]
[1745979432920,1.12833908,1803.3,1803.2,5.54569653]
[1745979433264,1.12833908,1803.3,1803.1,11.09179329]
[1745979433566,0.8183,1803.3,1803.2,5.54569653]
[1745979433717,4.631,1803.2,1803.1,5.54578987]
[1745979434848,4.94179788,1803.2,1803.1,5.54578987]
[1745979435942,11.09179788,1803.2,1803.1,5.54578987]
[1745979437354,11.33975037,1803.2,1803.1,5.54578987]
[1745979439363,11.33975037,1803.2,1803.1,6.6605321]
[1745979439954,11.33975037,1803.2,1803.1,7.4306321]
[1745979440155,6.70875037,1803.2,1803.1,7.4306321]
[1745979440360,6.15,1803.2,1803.1,7.4306321]
[1745979440569,6.39734061,1803.2,1803.1,7.4306321]
[1745979440867,6.39734061,1803.2,1803.1,5.54578987]
[1745979441649,0.24734061,1803.2,1803.1,5.54578987]
[1745979441847,0.24734061,1803.2,1802.5,0.7667]
[1745979442062,8.4406,1803.1,1802.8,5.54678729]
[1745979442366,0.24657563,1803.0,1802.8,5.54670289]
[1745979442567,0.24657563,1803.0,1802.9,5.54661933]
[1745979442756,0.24657563,1803.0,1802.8,5.54670289]
[1745979442953,3.0,1802.8,1802.5,5.54767837]
[1745979443159,4.97375249,1802.7,1802.5,5.54770724]
[1745979443378,5.21895085,1802.7,1802.6,5.54754243]
[1745979445344,4.97375249,1802.7,1802.6,5.54754243]
[1745979445870,5.21895085,1802.7,1802.6,5.54754243]
[1745979450481,5.21895085,1802.7,1802.4,5.5479613]
[1745979450651,0.8244,1802.6,1802.5,5.54782586]
[1745979450852,1.0657212,1802.6,1802.5,5.54782586]
[1745979451183,1.37647369,1802.6,1802.5,5.54782586]
[1745979452680,1.37647369,1802.6,1802.4,5.5479613]
[1745979452985,1.37647369,1802.6,1802.5,5.5478502]
[1745979455753,0.55207369,1802.6,1802.5,5.5478502]
[1745979455954,0.55207369,1802.6,1802.5,6.65743135]
[1745979456356,0.2413212,1802.6,1802.5,6.65743135]
[1745979456557,0.2413212,1802.6,1802.5,5.5478502]
[1745979456781,3.8038,1802.8,1802.6,5.54733171]
[1745979456990,4.665,1802.7,1802.6,5.54733171]
[1745979457185,4.97531321,1802.7,1802.6,5.54733171]
[1745979457572,4.97531321,1802.7,1802.6,6.73363605]
[1745979458083,4.665,1802.7,1802.6,6.73363605]
[1745979459481,7.665,1802.9,1802.8,5.546927]
[1745979460059,7.97552796,1802.9,1802.8,5.546927]
[1745979461163,3.31052796,1802.9,1802.8,5.546927]
[1745979461373,7.97552796,1802.9,1802.8,5.546927]
[1745979463887,7.97552796,1802.9,1802.7,5.54702185]
[1745979464289,0.31052796,1802.8,1802.7,5.54702185]
[1745979465259,0.31052796,1802.8,1802.7,5.5472347]
[1745979467306,0.55332891,1802.8,1802.7,5.5472347]
[1745979471282,0.55332891,1802.8,1802.7,6.65669853]
[1745979472190,0.55332891,1802.8,1802.7,5.5472347]
[1745979477897,0.55332891,1802.8,1802.7,5.60270078]
[1745979478895,0.55332891,1802.8,1802.7,5.5472347]
[1745979489034,0.55332891,1802.8,1802.7,6.3709347]
[1745979489233,1.3156,1803.2,1802.6,5.60287089]
[1745979489234,5.154,1803.2,1803.1,5.5460041]
[1745979491370,5.154,1803.2,1802.8,5.546927]
[1745979491371,0.7997,1803.1,1802.8,5.54671061]
[1745979491552,1.57803854,1803.0,1802.8,5.54673214]
[1745979492075,0.7997,1803.1,1802.9,5.54661933]
[1745979493893,0.7997,1803.1,1803.0,5.5463117]
[1745979495045,0.5,1803.2,1803.1,5.5460041]
[1745979495245,5.154,1803.2,1803.1,5.5460041]
[1745979496338,0.5,1803.2,1803.1,8.03685328]
[1745979496851,0.72379188,1803.2,1803.1,8.03685328]
[1745979497478,0.72379188,1803.2,1803.1,8.09230908]
[1745979497661,0.72379188,1803.2,1803.1,8.03685328]
[1745979497844,0.72379188,1803.2,1803.1,8.09230691]
[1745979498450,22.985,1803.6,1803.5,5.54477405]
[1745979498858,4.654,1803.6,1803.5,5.54477405]
[1745979503179,9.15,1803.8,1803.7,5.54415922]
[1745979503372,7.653,1803.8,1803.7,5.54415922]
[1745979506288,7.86094739,1803.8,1803.7,5.54415922]
[1745979506797,7.86094739,1803.8,1803.6,5.54433248]
[1745979507166,7.86094739,1803.8,1803.7,5.54415922]
[1745979507594,7.86094739,1803.8,1803.6,5.54429653]
[1745979507793,7.86094739,1803.8,1803.7,5.54415922]
[1745979508560,4.86094739,1803.8,1803.7,5.54415922]
[1745979510189,1e-08,1803.8,1803.7,7.47740349]
[1745979510371,7.37613897,1803.8,1803.4,5.54481479]
[1745979510571,3.0,1803.6,1803.5,5.54462495]
[1745979510788,3.8055,1803.6,1803.5,5.54477405]
[1745979511300,4.00050358,1803.6,1803.5,5.54477405]
[1745979511513,0.19500358,1803.6,1803.5,6.65374649]
[1745979511800,7.657,1803.7,1803.6,5.54446662]
[1745979511983,3.19500358,1803.7,1803.6,5.54446662]
[1745979512280,7.85200358,1803.7,1803.6,5.54446662]
[1745979514718,7.85200358,1803.7,1803.5,5.54477405]
[1745979514902,7.85200358,1803.7,1803.6,5.54446662]
[1745979515424,4.85200358,1803.7,1803.6,6.65337204]
[1745979516910,4.85200358,1803.7,1803.6,7.47757204]
[1745979517118,1e-08,1803.7,1803.6,9.02567738]
[1745979517286,1e-08,1803.7,1803.6,10.43717775]
[1745979517482,0.05,1803.9,1803.8,6.31965186]
[1745979517731,0.05,1803.9,1803.8,7.50601963]
[1745979519017,0.21798037,1803.9,1803.8,7.50601963]
[1745979519222,0.05,1803.9,1803.8,7.50601963]
[1745979519388,0.21798037,1803.9,1803.8,7.50601963]